bitfinex-derivatives/quotes_BTCF0:USTF0_20250822
["timestamp","ask_amount","ask_price","bid_price","bid_amount"]
[1755877475607,0.89689841,117010.0,117000.0,1.67521582]
[1755877475808,0.94064841,117010.0,117000.0,1.67521582]
[1755877476401,1.74596452,117010.0,117000.0,0.08455064]
[1755877476607,2.10676452,117010.0,117000.0,0.08455064]
[1755877476815,0.5224184,117000.0,116990.0,0.90662]
[1755877477007,0.0854757,116990.0,116980.0,0.15572]
[1755877477308,0.85547181,116990.0,116980.0,0.40057]
[1755877477516,0.70225181,116990.0,116980.0,0.80185]
[1755877477710,0.57225181,116990.0,116980.0,1.63929]
[1755877478012,0.70224901,117000.0,116990.0,0.44205]
[1755877478214,0.70224901,117000.0,116990.0,0.80285]
[1755877478715,0.94065901,117000.0,116990.0,0.80285]
[1755877479015,0.94065901,117000.0,116990.0,0.80685]
[1755877479417,0.85597901,117000.0,116990.0,0.80685]
[1755877479916,0.70224901,117000.0,116990.0,0.81568791]
[1755877480215,0.70224901,117000.0,116990.0,0.81368791]
[1755877481512,0.85597901,117000.0,116990.0,0.81468791]
[1755877481714,0.89690901,117000.0,116990.0,0.81468791]
[1755877481916,0.89690901,117000.0,116990.0,0.81668791]
[1755877482214,0.70224901,117000.0,116990.0,0.81668791]
[1755877483216,0.0854729,117000.0,116990.0,0.90216361]
[1755877483518,0.57224901,117000.0,116990.0,0.90216361]
[1755877483912,0.0854729,117000.0,116990.0,0.90216361]
[1755877484418,0.57224901,117000.0,116990.0,0.90216361]
[1755877484910,0.57224231,117010.0,116990.0,1.15216361]
[1755877485112,0.89409231,117010.0,117000.0,0.64582]
[1755877485314,1.00638231,117010.0,117000.0,1.62612]
[1755877485509,1.00638231,117010.0,117000.0,0.64269]
[1755877485709,1.00638231,117010.0,117000.0,1.62608]
[1755877486316,0.67563231,117010.0,117000.0,1.62608]
[1755877486508,0.70331231,117010.0,117000.0,1.62608]
[1755877486708,0.89409231,117010.0,117000.0,1.62908]
[1755877487816,0.0854611,117010.0,117000.0,1.7145484]
[1755877488120,0.4515598,117020.0,117010.0,0.42332]
[1755877488318,0.5219698,117020.0,117010.0,0.78412]
[1755877489207,0.93833591,117020.0,117010.0,0.78412]
[1755877489413,0.93833591,117020.0,117010.0,0.78612]
[1755877490017,1.00874591,117020.0,117010.0,0.42532]
[1755877490518,1.00974591,117020.0,117010.0,0.42532]
[1755877491823,0.5229698,117020.0,117010.0,0.42532]
[1755877492119,1.00974591,117020.0,117010.0,0.42532]
[1755877492807,1.00974591,117020.0,117010.0,0.83784]
[1755877493011,1.00974591,117020.0,117010.0,1.17582]
[1755877494120,1.00974591,117020.0,117010.0,1.21721]
[1755877494622,1.00974591,117020.0,117010.0,0.42532]
[1755877494927,1.00974591,117020.0,117010.0,0.90527]
[1755877495109,1.62054591,117020.0,117010.0,0.06943]
[1755877495313,1.62054591,117020.0,117010.0,0.002]
[1755877497618,1.62054591,117020.0,117010.0,0.06943]
[1755877498122,1.62054591,117020.0,117010.0,0.38393]
[1755877498317,1.62054591,117020.0,117010.0,0.27861]
[1755877498518,1.62054591,117020.0,117010.0,0.42532]
[1755877498721,1.62054591,117020.0,117010.0,0.16571]
[1755877498921,1.62054591,117020.0,117010.0,0.002]
[1755877500424,0.5219314,117010.0,117000.0,0.06743]
[1755877500620,0.521946,116990.0,116980.0,0.63741]
[1755877500819,0.521946,116990.0,116980.0,0.78412]
[1755877501123,1.00872211,116990.0,116980.0,0.78412]
[1755877501323,0.93831211,116990.0,116980.0,0.78412]
[1755877501716,0.93831211,116990.0,116980.0,0.79263455]
[1755877501920,1.00872211,116990.0,116980.0,0.79263455]
[1755877502317,0.93831211,116990.0,116980.0,0.79263455]
[1755877502521,1.00872211,116990.0,116980.0,0.79763455]
[1755877502824,0.93831211,116990.0,116980.0,0.79763455]
[1755877503026,0.217906,116990.0,116980.0,0.79763455]
[1755877503319,0.60129211,116990.0,116980.0,0.79763455]
[1755877503524,0.085476,116990.0,116980.0,1.53441066]
[1755877503923,0.085476,116990.0,116980.0,1.04763455]
[1755877504126,0.085476,116990.0,116980.0,1.13311785]
[1755877504323,0.57224851,117000.0,116990.0,0.085476]
[1755877504629,0.5219345,117010.0,117000.0,0.42332]
[1755877505332,0.4515245,117010.0,117000.0,0.42332]
[1755877505719,0.93830061,117010.0,117000.0,0.42332]
[1755877505925,0.78845061,117010.0,117000.0,0.78412]
[1755877506236,0.74944061,117010.0,117000.0,0.78412]
[1755877506422,0.2626645,117010.0,117000.0,0.78412]
[1755877506728,0.93830061,117010.0,117000.0,0.78412]
[1755877506925,0.4515245,117010.0,117000.0,0.78412]
[1755877507124,0.93830061,117010.0,117000.0,0.78412]
[1755877507433,0.78845061,117010.0,117000.0,0.78412]
[1755877507926,0.74944061,117010.0,117000.0,0.78412]
[1755877508123,0.70467061,117010.0,117000.0,0.78612]
[1755877508324,0.70467061,117010.0,117000.0,1.6204]
[1755877508521,0.67567611,117020.0,117000.0,1.72348478]
[1755877508726,0.02908,117020.0,117010.0,0.8695814]
[1755877508933,0.60131041,117020.0,117010.0,0.8695814]
[1755877509128,4e-05,117020.0,117010.0,0.8695814]
[1755877509330,4e-05,117020.0,117010.0,1.60635751]
[1755877510223,4e-05,117020.0,117010.0,1.1195814]
[1755877510729,0.48681611,117020.0,117010.0,1.9535814]
[1755877511333,4e-05,117020.0,117010.0,1.9535814]
[1755877511634,0.48781611,117020.0,117010.0,1.9545814]
[1755877511936,0.00104,117020.0,117010.0,1.9545814]
[1755877512331,0.59120611,117020.0,117010.0,1.9545814]
[1755877512732,0.59120611,117020.0,117010.0,1.86912]
[1755877513033,0.48781611,117020.0,117010.0,1.86912]
[1755877513532,0.48781611,117020.0,117010.0,1.9545816]
[1755877513931,0.00104,117020.0,117010.0,1.9545816]
[1755877514346,0.09959,117020.0,117010.0,1.86912]
[1755877514546,0.00104,117020.0,117010.0,1.9545816]
[1755877517058,0.0864943,117020.0,117010.0,1.86912]
[1755877517247,0.57327041,117020.0,117010.0,1.86912]
[1755877519561,0.48781611,117020.0,117010.0,1.9545818]
[1755877519759,0.0864945,117020.0,117010.0,1.9545818]
[1755877520861,0.57327061,117020.0,117010.0,1.9545818]
[1755877521156,0.57327061,117020.0,117010.0,1.86912]
[1755877521556,0.0864945,117020.0,117010.0,1.86912]
[1755877521752,0.1850445,117020.0,117010.0,1.86912]
[1755877521958,0.48781611,117020.0,117010.0,1.9545818]
[1755877522460,0.00104,117020.0,117010.0,1.9545818]
[1755877523864,0.00104,117020.0,117010.0,2.44135791]
[1755877524665,0.00104,117020.0,117010.0,1.9545818]
[1755877525364,0.00104,117020.0,117010.0,1.9535818]
[1755877525565,4e-05,117020.0,117010.0,1.9555818]
[1755877527462,4e-05,117020.0,117010.0,2.44235791]
[1755877527862,4e-05,117020.0,117010.0,1.9555818]
[1755877528165,0.1839889,117040.0,117030.0,0.16686]
[1755877528365,0.1839889,117040.0,117030.0,1.3599]
[1755877528669,0.85630501,117040.0,117030.0,1.3599]
[1755877528971,0.94070501,117040.0,117030.0,1.60569]
[1755877529665,0.0285,117040.0,117030.0,1.6911363]
[1755877529869,0.113939,117040.0,117030.0,1.6911363]
[1755877530066,0.115939,117040.0,117030.0,1.6911363]
[1755877530263,0.214489,117040.0,117030.0,0.8588963]
[1755877530460,0.298889,117040.0,117030.0,1.60533]
[1755877530661,0.94270511,117040.0,117030.0,1.60533]
[1755877530968,0.90350511,117040.0,117030.0,1.60533]
[1755877531272,0.259689,117040.0,117030.0,1.6907772]
[1755877531461,0.70126511,117040.0,117030.0,1.6907772]
[1755877531660,1.01092511,117040.0,117030.0,1.24449]
[1755877531868,1.01092511,117040.0,117030.0,1.24437]
[1755877532565,1.01092511,117040.0,117030.0,1.31157328]
[1755877532761,1.01092511,117040.0,117030.0,1.67237328]
[1755877532961,0.94270511,117040.0,117030.0,1.67237328]
[1755877533361,0.94270511,117040.0,117030.0,0.84065328]
[1755877533858,1.01092511,117040.0,117030.0,1.31137328]
[1755877534070,1.01092511,117040.0,117030.0,0.47985328]
[1755877534270,1.01092511,117040.0,117030.0,1.31133328]
[1755877535469,1.01092511,117040.0,117030.0,1.67213328]
[1755877535769,0.4559299,117040.0,117030.0,1.75758048]
[1755877535967,0.61582611,117040.0,117030.0,1.75758048]
[1755877536166,0.1859899,117040.0,117030.0,1.75758048]
[1755877536470,0.57421601,117040.0,117030.0,1.75758048]
[1755877536662,0.67276601,117040.0,117030.0,1.75758048]
[1755877537462,0.1859899,117040.0,117030.0,1.75758048]
[1755877537668,0.70126601,117040.0,117030.0,1.75758048]
[1755877538362,0.2144899,117040.0,117030.0,1.75758048]
[1755877538565,0.70126601,117040.0,117030.0,1.75758048]
[1755877539371,0.61582611,117040.0,117030.0,1.75758048]
[1755877540070,0.85830601,117040.0,117030.0,1.75758048]
[1755877540564,0.2144899,117040.0,117030.0,1.75758048]
[1755877540772,0.51727611,117040.0,117030.0,1.75758048]
[1755877540967,0.61582611,117040.0,117030.0,1.75758048]
[1755877541363,0.12905,117040.0,117030.0,1.75758048]
[1755877541673,0.61582611,117040.0,117030.0,1.75758048]
[1755877542063,0.0305,117040.0,117030.0,1.75758048]
[1755877542264,0.002,117040.0,117030.0,2.24435659]
[1755877542463,0.002,117040.0,117030.0,1.75758048]
[1755877542864,0.002,117040.0,117030.0,2.49435659]
[1755877543264,0.002,117040.0,117030.0,2.00758048]
[1755877543465,0.0009047,117050.0,117040.0,0.4980899]
[1755877543770,0.0009047,117050.0,117040.0,0.87634544]
[1755877543959,0.78456341,117050.0,117040.0,1.62142554]
[1755877544163,0.93577341,117050.0,117040.0,1.70686544]
[1755877544365,0.93577341,117050.0,117040.0,1.62142554]
[1755877545164,0.93677341,117050.0,117040.0,1.62142554]
[1755877545469,0.93677341,117050.0,117040.0,1.62242554]
[1755877545672,0.0019047,117050.0,117040.0,2.19464155]
[1755877546063,5.171e-05,117090.0,117080.0,0.07063]
[1755877546262,0.0009447,117100.0,117090.0,0.5007834]
[1755877546465,0.01938446,117130.0,117120.0,0.4744716]
[1755877546663,0.04211532,117150.0,117140.0,0.41538]
[1755877546866,0.35603367,117150.0,117140.0,1.60642]
[1755877547072,0.02305397,117150.0,117140.0,2.17856311]
[1755877547266,0.09641,117170.0,117160.0,0.35002]
[1755877547473,0.73439611,117170.0,117160.0,1.18022]
[1755877547782,0.09641,117180.0,117170.0,0.35002]
[1755877548071,0.09646177,117190.0,117180.0,0.4353578]
[1755877548271,4e-05,117200.0,117180.0,1.3721978]
[1755877548474,4e-05,117200.0,117190.0,0.7961505]
[1755877548773,4e-05,117200.0,117190.0,0.71082]
[1755877548971,1.35093827,117200.0,117190.0,0.35002]
[1755877549167,0.0853306,117190.0,117180.0,0.04145]
[1755877549364,1.60290557,117190.0,117180.0,0.06582]
[1755877549565,1.60290557,117190.0,117180.0,0.30857]
[1755877549767,1.60090557,117190.0,117180.0,0.06582]
[1755877549967,0.3735679,117180.0,117170.0,1.25553512]
[1755877550175,1.30200287,117180.0,117170.0,1.25553512]
[1755877550569,1.60091287,117180.0,117170.0,0.97133512]
[1755877550764,1.60091287,117180.0,117170.0,0.13295674]
[1755877551160,1.60171287,117180.0,117170.0,0.06713674]
[1755877551363,0.1817551,117170.0,117150.0,0.8955]
[1755877551665,0.1817697,117150.0,117140.0,0.1158293]
[1755877551862,0.1817697,117150.0,117140.0,0.13390945]
[1755877551863,1.35093467,117150.0,117140.0,0.13390945]
[1755877552170,1.35093467,117150.0,117100.0,0.51558953]
[1755877552171,0.0853889,117110.0,117100.0,0.51558953]
[1755877552471,0.84483697,117120.0,117100.0,1.35341233]
[1755877552666,0.94124697,117120.0,117110.0,0.2842]
[1755877552970,0.4225361,117100.0,117090.0,0.06582]
[1755877553166,0.1818207,117080.0,117070.0,1.616092]
[1755877553366,0.3330194,117100.0,117090.0,0.09594]
[1755877553561,0.94126437,117100.0,117090.0,0.92526]
[1755877553962,0.94126437,117100.0,117090.0,0.99108]
[1755877554168,0.82433875,117110.0,117090.0,1.6255434]
[1755877554361,0.96135875,117110.0,117100.0,0.71082]
[1755877554566,0.96135605,117110.0,117100.0,0.71082]
[1755877554765,0.95635605,117110.0,117100.0,0.35002]
[1755877554966,0.01510218,117110.0,117100.0,0.86548329]
[1755877555172,0.10049098,117110.0,117100.0,0.78008719]
[1755877555370,0.95735595,117110.0,117100.0,0.78008719]
[1755877555567,1.25626595,117110.0,117100.0,0.13508719]
[1755877555764,0.63972098,117110.0,117100.0,0.41928719]
[1755877556070,1.20735595,117110.0,117100.0,0.78008719]
[1755877556373,1.20735595,117110.0,117100.0,0.41928719]
[1755877556871,1.25626595,117110.0,117100.0,0.13508719]
[1755877557072,0.63972098,117110.0,117100.0,0.41928719]
[1755877557372,1.16674595,117110.0,117100.0,0.27247719]
[1755877557568,1.20735595,117110.0,117100.0,1.25136719]
[1755877557870,1.20735595,117110.0,117100.0,1.61216719]
[1755877558274,1.56815595,117110.0,117100.0,1.25136719]
[1755877558476,1.20735595,117110.0,117100.0,1.25136719]
[1755877558670,1.56815595,117110.0,117100.0,1.25136719]
[1755877558871,1.61706595,117110.0,117100.0,0.07226719]
[1755877559071,0.1818135,117090.0,117080.0,0.06582]
[1755877559272,0.99017847,117090.0,117080.0,0.13426549]
[1755877559466,1.24017847,117090.0,117080.0,0.89478]
[1755877559678,0.4225508,117080.0,117070.0,0.89478]
[1755877559881,0.99018577,117080.0,117070.0,0.89474]
[1755877560078,0.99018577,117080.0,117070.0,1.13749]
[1755877560280,1.19127577,117080.0,117070.0,1.5481473]
[1755877560679,1.19127577,117080.0,117070.0,1.1873473]
[1755877561075,1.19127577,117080.0,117070.0,1.5481473]
[1755877561270,0.3330308,117080.0,117070.0,1.5481473]
[1755877561477,0.3330308,117080.0,117070.0,1.5531473]
[1755877561676,0.90066577,117080.0,117070.0,1.5531473]
[1755877562177,0.75045577,117080.0,117070.0,1.5541473]
[1755877562373,0.0864108,117080.0,117070.0,1.5541473]
[1755877562572,0.001,117080.0,117070.0,1.62395168]
[1755877562975,0.001,117080.0,117070.0,1.70936978]
[1755877563471,0.001,117080.0,117070.0,1.62395168]
[1755877563678,0.001,117080.0,117070.0,1.70936978]
[1755877564976,0.001,117080.0,117070.0,2.54455529]
[1755877565377,0.001,117080.0,117070.0,2.29455529]
[1755877566080,0.001,117080.0,117070.0,1.97692032]
[1755877566382,0.001,117080.0,117070.0,1.72668032]
[1755877566879,0.0864108,117080.0,117070.0,1.64118222]
[1755877567384,0.0864108,117080.0,117070.0,1.72660032]
[1755877567577,0.1828208,117080.0,117070.0,1.64118222]
[1755877567783,0.94227577,117080.0,117070.0,1.64114222]
[1755877567982,1.24118577,117080.0,117070.0,0.25511492]
[1755877568178,1.60198577,117080.0,117070.0,0.98773492]
[1755877568377,1.24118577,117080.0,117070.0,0.98773492]
[1755877568583,1.24118577,117080.0,117070.0,1.27193492]
[1755877568780,1.19227577,117080.0,117070.0,1.27193492]
[1755877569483,0.2234308,117080.0,117070.0,1.63273492]
[1755877569784,0.001,117080.0,117070.0,2.28578799]
[1755877569981,0.10049518,117110.0,117090.0,0.0854001]
[1755877570179,0.10049108,117110.0,117100.0,1.53926]
[1755877570484,0.3736189,117110.0,117100.0,1.17846]
[1755877570685,0.1259878,117130.0,117110.0,0.3695887]
[1755877570875,0.96021461,117140.0,117130.0,0.2842]
[1755877571282,0.39257964,117140.0,117130.0,0.35002]
[1755877571486,0.35196964,117140.0,117130.0,0.35002]
[1755877571688,1.26012461,117140.0,117130.0,0.1342909]
[1755877571980,1.62092461,117140.0,117130.0,0.0684709]
[1755877572181,0.1817844,117130.0,117120.0,0.89422]
[1755877572382,0.98954937,117130.0,117120.0,0.89422]
[1755877572585,0.0853817,117120.0,117110.0,0.61488]
[1755877572783,0.98955667,117120.0,117110.0,0.61488]
[1755877572980,0.98955667,117120.0,117110.0,0.06582]
[1755877573181,1.23955667,117120.0,117110.0,0.89414]
[1755877573781,1.19112667,117120.0,117110.0,1.18816]
[1755877574186,1.23955667,117120.0,117110.0,0.99702]
[1755877574888,1.19112667,117120.0,117110.0,1.189]
[1755877575082,1.19112667,117120.0,117110.0,1.5498]
[1755877575489,1.19512667,117120.0,117110.0,1.5508]
[1755877575689,0.0893817,117120.0,117110.0,1.6361889]
[1755877575886,0.004,117120.0,117110.0,2.20382387]
[1755877576094,0.004,117120.0,117110.0,2.45382387]
[1755877576685,0.004,117120.0,117110.0,1.8861889]
[1755877576885,0.004,117120.0,117110.0,2.45382387]
[1755877577489,0.004,117120.0,117110.0,1.8861889]
[1755877577688,0.004,117120.0,117110.0,2.45382387]
[1755877578190,0.0893816,117120.0,117110.0,2.36843497]
[1755877578489,0.0893816,117120.0,117110.0,1.8008]
[1755877578685,0.0893816,117120.0,117110.0,1.80056]
[1755877578886,0.0893816,117120.0,117110.0,1.8859489]
[1755877579689,0.004,117120.0,117110.0,1.8859489]
[1755877579889,0.004,117120.0,117110.0,2.45358387]
[1755877580081,0.004,117120.0,117110.0,1.62566387]
[1755877580284,0.0893817,117120.0,117110.0,2.45342387]
[1755877580484,0.0893817,117120.0,117110.0,1.8004]
[1755877580996,0.93942667,117120.0,117110.0,1.55036]
[1755877581288,0.3717917,117120.0,117110.0,1.56793057]
[1755877581489,0.1866917,117120.0,117110.0,1.56793057]
[1755877581890,0.0893817,117120.0,117110.0,1.56793057]
[1755877582393,0.004,117120.0,117110.0,1.65331947]
[1755877582690,0.004,117120.0,117110.0,2.47095444]
[1755877583189,0.0853713,117140.0,117120.0,0.0853761]
[1755877583394,0.0853713,117140.0,117130.0,1.54409]
[1755877584284,1.18512627,117140.0,117130.0,1.03272]
[1755877584491,1.24367627,117140.0,117130.0,0.16811]
[1755877584688,1.60447627,117140.0,117130.0,0.06607]
[1755877584895,1.96607627,117140.0,117130.0,0.001]
[1755877585984,1.3984413,117140.0,117130.0,0.001]
[1755877586188,1.96607627,117140.0,117130.0,0.001]
[1755877586381,0.4190517,117120.0,117110.0,1.01204057]
[1755877586582,0.98668667,117120.0,117110.0,1.20070057]
[1755877586791,1.34748667,117120.0,117110.0,1.20070057]
[1755877587389,0.93513667,117120.0,117110.0,1.28608957]
[1755877587986,0.3275417,117120.0,117110.0,1.56150057]
[1755877588294,0.0853817,117120.0,117110.0,1.64688957]
[1755877588789,0.0863671,117140.0,117130.0,0.4411444]
[1755877589088,0.0853671,117140.0,117130.0,1.6291044]
[1755877589293,0.89516207,117140.0,117130.0,1.18293]
[1755877589493,0.93512207,117140.0,117130.0,1.18289]
[1755877589687,0.93512207,117140.0,117130.0,1.25268579]
[1755877589886,0.98667207,117140.0,117130.0,1.06402579]
[1755877590193,0.98967207,117140.0,117130.0,1.06602579]
[1755877590394,0.98967207,117140.0,117130.0,1.21655579]
[1755877590595,0.98967207,117140.0,117130.0,1.25468579]
[1755877590792,1.23967207,117140.0,117130.0,1.06602579]
[1755877590990,1.23967207,117140.0,117130.0,0.06707]
[1755877591198,0.98967207,117140.0,117130.0,0.1052]
[1755877591492,0.98967207,117140.0,117130.0,0.35777]
[1755877591698,0.93812207,117140.0,117130.0,0.35777]
[1755877591996,1.29892207,117140.0,117130.0,0.35777]
[1755877592198,1.35047207,117140.0,117130.0,0.35777]
[1755877592392,0.0883671,117140.0,117130.0,1.66207004]
[1755877592599,0.0883671,117140.0,117130.0,2.53319242]
[1755877592995,0.0883671,117140.0,117130.0,1.96555745]
[1755877593689,0.0883671,117140.0,117130.0,1.88018305]
[1755877593893,0.0883671,117140.0,117130.0,1.96555745]
[1755877594497,0.003,117140.0,117130.0,2.53319242]
[1755877594997,0.0883685,117140.0,117130.0,2.53319242]
[1755877595190,0.003,117140.0,117130.0,1.96555745]
[1755877595387,0.3608,117180.0,117160.0,0.10204]
[1755877595592,0.41963787,117190.0,117160.0,0.35577]
[1755877595593,0.0853502,117170.0,117160.0,0.35577]
[1755877595796,0.0853502,117170.0,117160.0,1.54329]
[1755877595998,0.3275102,117170.0,117160.0,1.54329]
[1755877596202,0.0853502,117170.0,117160.0,1.54329]
[1755877596696,0.50565,117180.0,117170.0,0.0853473]
[1755877596697,0.002,117180.0,117170.0,0.0853473]
[1755877597001,0.002,117180.0,117170.0,1.36955227]
[1755877597301,0.002,117180.0,117170.0,0.8019173]
[1755877597599,0.002,117180.0,117170.0,0.81051723]
[1755877597994,0.002,117180.0,117170.0,1.3781522]
[1755877598193,0.002,117180.0,117170.0,1.2928049]
[1755877598395,0.08534,117180.0,117170.0,1.3781522]
[1755877598594,0.08534,117180.0,117170.0,0.81051723]
[1755877598994,0.08534,117180.0,117170.0,1.3781522]
[1755877599195,0.08634,117180.0,117170.0,1.3781522]
[1755877599496,0.001,117180.0,117170.0,1.3781522]
[1755877599695,0.001,117180.0,117170.0,1.6281522]
[1755877599891,0.08634,117180.0,117170.0,0.97516993]
[1755877600199,0.08634,117180.0,117170.0,1.80156993]
[1755877600602,0.001,117180.0,117170.0,2.4545522]
[1755877601196,0.08634,117180.0,117170.0,2.4545522]
[1755877601402,0.0853696,117200.0,117190.0,0.35577]
[1755877601600,0.3275296,117200.0,117190.0,1.18201]
[1755877601797,0.3275296,117200.0,117190.0,2.08497767]
[1755877601798,0.1826796,117200.0,117190.0,2.08497767]
[1755877601999,0.0853654,117200.0,117190.0,0.92340497]
[1755877602205,0.3275254,117200.0,117190.0,1.18197]
[1755877602703,0.3295254,117200.0,117190.0,1.18197]
[1755877602904,0.3345254,117200.0,117190.0,1.18297]
[1755877603105,0.0923654,117200.0,117190.0,1.18297]
[1755877603502,0.3744854,117200.0,117190.0,1.18285]
[1755877603800,0.3744854,117200.0,117190.0,0.35677]
[1755877604005,0.2296354,117200.0,117190.0,1.18281]
[1755877604200,0.1896754,117200.0,117190.0,1.18281]
[1755877604504,0.0923654,117200.0,117190.0,2.36124497]
[1755877604698,0.0923654,117200.0,117190.0,1.61066703]
[1755877605103,0.3413654,117200.0,117190.0,0.78462703]
[1755877605300,0.3813254,117200.0,117190.0,0.63409703]
[1755877605603,0.3813254,117200.0,117190.0,1.46005703]
[1755877605604,0.4358754,117200.0,117190.0,1.46005703]
[1755877605906,1.00351037,117200.0,117190.0,1.24283703]
[1755877606604,1.61431037,117200.0,117190.0,0.95900703]
[1755877606997,1.61431037,117200.0,117190.0,0.06805703]
[1755877607605,1.61431037,117200.0,117190.0,0.13313703]
[1755877607809,1.61431037,117200.0,117190.0,0.40785703]
[1755877607810,0.5908854,117200.0,117190.0,0.40785703]
[1755877607996,0.7403654,117200.0,117190.0,0.40785703]
[1755877608596,1.36146037,117200.0,117190.0,1.05307703]
[1755877608901,1.36146037,117200.0,117190.0,0.06805703]
[1755877608902,1.61146037,117200.0,117190.0,0.06805703]
[1755877609102,1.61146037,117200.0,117190.0,0.13313703]
[1755877609304,0.7403654,117200.0,117190.0,0.40785703]
[1755877609505,0.10656,117200.0,117190.0,1.4216247]
[1755877609698,0.00704,117200.0,117190.0,1.4216247]
[1755877609904,0.00704,117200.0,117190.0,1.6716247]
[1755877610500,0.00704,117200.0,117190.0,1.10398973]
[1755877610501,0.0923655,117200.0,117190.0,1.10398973]
[1755877610705,0.0923655,117200.0,117190.0,1.67966973]
[1755877611307,0.00704,117200.0,117190.0,1.67966973]
[1755877611505,0.00704,117200.0,117190.0,2.2473047]
[1755877612405,0.1918854,117200.0,117190.0,0.71040973]
[1755877612610,0.3413654,117200.0,117190.0,1.59417703]
[1755877612802,0.00704,117200.0,117190.0,1.67950973]
[1755877613003,0.00704,117200.0,117190.0,2.2471447]
[1755877613207,0.00704,117200.0,117190.0,2.4971447]
[1755877614012,0.0923654,117200.0,117190.0,0.76865703]
[1755877614310,0.0923654,117200.0,117190.0,1.67950973]
[1755877614506,0.0923654,117200.0,117190.0,2.2471447]
[1755877614709,0.00704,117200.0,117190.0,2.2471447]
[1755877615005,0.00704,117200.0,117190.0,2.4971447]
[1755877615204,0.3343143,117220.0,117210.0,0.09418]
[1755877615405,0.3343143,117220.0,117210.0,1.16512]
[1755877615601,0.7332962,117240.0,117230.0,0.09418]
[1755877615802,0.3724962,117240.0,117230.0,1.17372367]
[1755877616513,0.3724962,117240.0,117230.0,0.34840367]
[1755877616514,0.1848162,117240.0,117230.0,0.34840367]
[1755877616704,0.3342962,117240.0,117230.0,1.17368367]
[1755877617005,0.3724962,117240.0,117230.0,1.17368367]
[1755877617313,1.25063117,117240.0,117230.0,1.17368367]
[1755877617509,1.61143117,117240.0,117230.0,0.06508]
[1755877617811,1.61143117,117240.0,117230.0,0.89032]
[1755877618206,1.61543117,117240.0,117230.0,0.9845]
[1755877618406,1.61543117,117240.0,117230.0,1.16504]
[1755877618608,1.25663117,117240.0,117230.0,1.16504]
[1755877618802,1.61443117,117240.0,117230.0,0.06508]
[1755877619004,1.61443117,117240.0,117230.0,1.16492]
[1755877619211,1.00363117,117240.0,117230.0,0.3398]
[1755877619504,0.3754962,117240.0,117230.0,0.3398]
[1755877619704,0.3372962,117240.0,117230.0,1.2501834]
[1755877619906,0.003,117240.0,117230.0,2.42861837]
[1755877620305,0.0882962,117240.0,117230.0,0.9506]
[1755877620507,0.01887545,117250.0,117240.0,0.4250962]
[1755877620807,0.01887545,117250.0,117240.0,1.35353117]
[1755877621201,0.08576783,117260.0,117240.0,1.35353117]
[1755877621202,0.00048223,117260.0,117250.0,0.3398]
[1755877621401,0.18528383,117260.0,117250.0,1.16476]
[1755877621603,0.43346383,117260.0,117250.0,0.19622]
[1755877621912,0.43346383,117260.0,117250.0,1.16476]
[1755877622109,0.68346383,117260.0,117250.0,1.16476]
[1755877622309,1.04626383,117260.0,117250.0,1.16476]
[1755877622607,1.6138988,117260.0,117250.0,1.16472]
[1755877622911,1.04626383,117260.0,117250.0,1.16472]
[1755877623114,0.68546383,117260.0,117250.0,0.40878755]
[1755877623410,0.08776383,117260.0,117250.0,1.84450755]
[1755877623713,0.0852707,117280.0,117260.0,0.1794616]
[1755877623909,0.73331664,117290.0,117280.0,0.3398]
[1755877624108,0.73331664,117290.0,117270.0,1.83858887]
[1755877624109,0.0852816,117260.0,117250.0,0.62743385]
[1755877624308,0.3724816,117260.0,117250.0,0.78669385]
[1755877624614,0.3724816,117260.0,117250.0,1.25061385]
[1755877624814,0.3724816,117260.0,117250.0,0.28231385]
[1755877624815,1.61141657,117260.0,117250.0,0.28231385]
[1755877625020,1.61141657,117260.0,117250.0,0.97589385]
[1755877625219,1.61141657,117260.0,117250.0,1e-07]
[1755877625220,1.61221657,117260.0,117250.0,1e-07]
[1755877625415,1.36221657,117260.0,117250.0,1e-07]
[1755877625614,1.61141657,117260.0,117250.0,1e-07]
[1755877625910,1.36323657,117260.0,117250.0,0.0010001]
[1755877626107,1.11323657,117260.0,117250.0,0.0660801]
[1755877626307,0.5838016,117260.0,117250.0,1.23379224]
[1755877626507,0.0852816,117260.0,117250.0,1.31908114]
[1755877626718,0.0852816,117260.0,117250.0,1.59459224]
[1755877626915,0.3342816,117260.0,117250.0,0.40911224]
[1755877627210,0.3342816,117260.0,117250.0,1.23375224]
[1755877627415,0.1848016,117260.0,117250.0,1.23375224]
[1755877627617,0.3342816,117260.0,117250.0,0.40911224]
[1755877627919,0.1848016,117260.0,117250.0,1.23371224]
[1755877628116,0.94011657,117260.0,117250.0,1.09013224]
[1755877628317,1.61141657,117260.0,117250.0,0.13439224]
[1755877628613,1.61141657,117260.0,117250.0,0.06931224]
[1755877628808,1.61221657,117260.0,117250.0,1e-07]
[1755877629211,1.61141657,117260.0,117250.0,1e-07]
[1755877629419,1.36141657,117260.0,117250.0,0.0650801]
[1755877629919,1.36141657,117260.0,117250.0,0.0550775]
[1755877630415,0.7937816,117260.0,117250.0,0.2928375]
[1755877630620,1.36141657,117260.0,117250.0,0.3297975]
[1755877630815,0.7332816,117260.0,117250.0,0.1862175]
[1755877631013,0.7332816,117260.0,117250.0,0.3297975]
[1755877631219,0.7332816,117260.0,117250.0,1.1542775]
[1755877631418,0.8002616,117260.0,117250.0,1.1542775]
[1755877631717,1.36789657,117260.0,117250.0,1.0106575]
[1755877631919,0.1848089,117250.0,117240.0,0.92644]
[1755877632221,1.36790387,117250.0,117240.0,1.1642]
[1755877632419,0.3724889,117250.0,117240.0,1.2494962]
[1755877632722,0.3342889,117250.0,117240.0,1.1642]
[1755877633020,0.3342889,117250.0,117240.0,0.3398]
[1755877633222,1.00710387,117250.0,117240.0,0.3398]
[1755877633417,1.36790387,117250.0,117240.0,1.16416]
[1755877633619,0.8002689,117250.0,117240.0,1.13199]
[1755877633915,1.30092387,117250.0,117240.0,1.16685]
[1755877634215,0.3324189,117250.0,117240.0,1.16785]
[1755877634408,0.5456089,117250.0,117240.0,1.2551462]
[1755877634613,0.1848089,117250.0,117240.0,1.16985]
[1755877634921,0.0852889,117250.0,117240.0,1.2551462]
[1755877635115,0.0852889,117250.0,117240.0,1.6159462]
[1755877635615,0.0852847,117260.0,117250.0,0.4278189]
[1755877635923,0.0852847,117260.0,117250.0,0.7886189]
[1755877636218,0.50841,117270.0,117250.0,0.70333]
[1755877636419,0.0570766,117280.0,117260.0,1.3624416]
[1755877636719,0.3266712,117280.0,117270.0,0.34253]
[1755877637508,1.29388617,117280.0,117270.0,0.34253]